bitfinex/quotes_ETHUSD_20240707
["timestamp","ask_amount","ask_price","bid_price","bid_amount"]
[1720322744505,1.01710716,3048.9,3048.8,2.29598]
[1720322744691,2.39012117,3048.9,3048.8,2.29598]
[1720322744897,0.67812961,3049.1,3048.9,2.29591]
[1720322745117,1.01710716,3049.3,3049.1,2.29575]
[1720322745405,0.67822501,3049.2,3049.1,2.29575]
[1720322746253,2.38998931,3049.2,3049.1,2.29575]
[1720322746464,0.67822501,3049.2,3049.1,2.29575]
[1720322747323,0.67822501,3049.2,3049.1,4.5915]
[1720322747518,0.67822501,3049.3,3049.2,2.29568]
[1720322747722,1.01710716,3049.4,3049.2,2.29568]
[1720322747723,0.67822501,3049.4,3049.3,2.2956]
[1720322748227,2.38988208,3049.4,3049.3,2.2956]
[1720322748958,0.67822501,3049.4,3049.3,2.2956]
[1720322749132,1.71161543,3049.5,3049.4,2.29551]
[1720322749338,1.7116439,3049.5,3049.4,2.29551]
[1720322750761,3.18731189,3049.6,3049.5,2.29545]
[1720322751073,4.89894645,3049.6,3049.5,2.29545]
[1720322751768,6.00542203,3049.6,3049.5,2.29545]
[1720322752352,6.00539099,3049.6,3049.5,2.29545]
[1720322752541,4.89891541,3049.6,3049.5,2.29545]
[1720322753250,3.88160352,3049.6,3049.5,2.29545]
[1720322753855,4.55985926,3049.6,3049.5,2.29545]
[1720322754231,4.55985926,3049.6,3049.5,4.5909]
[1720322755654,4.559809,3049.6,3049.5,4.5909]
[1720322756672,2.17,3049.6,3049.5,4.5909]
[1720322757328,3.88149411,3049.6,3049.5,4.5909]
[1720322757531,2.17,3049.6,3049.5,4.5909]
[1720322758074,4.55978851,3049.6,3049.5,4.5909]
[1720322758270,3.88150115,3049.6,3049.5,4.6299926]
[1720322758982,0.67828736,3049.8,3049.7,2.2953]
[1720322759263,1.01753428,3050.0,3049.9,2.29515]
[1720322759669,1.71137332,3050.0,3049.9,2.3339168]
[1720322760333,2.38953743,3050.0,3049.9,2.3339168]
[1720322760758,2.7289076,3050.0,3049.9,2.3339168]
[1720322761208,1.71137332,3050.0,3049.9,2.3339168]
[1720322761387,1.01722319,3050.2,3050.1,2.295]
[1720322761707,2.38937756,3050.2,3050.1,2.33357994]
[1720322761861,1.71118747,3050.2,3050.1,2.33357994]
[1720322762063,2.38937756,3050.2,3050.1,4.62857994]
[1720322762567,1.01722319,3050.4,3050.3,2.29485]
[1720322762768,2.72836218,3050.4,3050.3,2.33331908]
[1720322763078,2.72836218,3050.4,3050.3,2.29485]
[1720322763601,1.71113899,3050.4,3050.3,2.29485]
[1720322763901,1.71113899,3050.4,3050.3,2.33331908]
[1720322764285,5.64052183,3050.5,3050.3,2.33331908]
[1720322764609,1.71113274,3050.4,3050.3,2.33331908]
[1720322764929,1.71113274,3050.4,3050.3,2.29485]
[1720322765295,1.71113274,3050.4,3050.3,2.33331908]
[1720322765506,2.38878133,3050.4,3050.3,2.33331908]
[1720322766012,1.71113274,3050.4,3050.3,2.29485]
[1720322766216,2.38875516,3050.4,3050.3,2.33331908]
[1720322766378,3.46308676,3050.4,3050.3,2.29485]
[1720322767195,2.44625869,3050.4,3050.3,2.29485]
[1720322767582,3.52804931,3050.4,3050.3,2.29485]
[1720322768140,3.52808355,3050.4,3050.1,2.295]
[1720322768312,0.67743286,3050.2,3050.1,2.295]
[1720322768513,2.38862867,3050.2,3050.1,2.295]
[1720322768886,0.67743286,3050.2,3050.1,2.295]
[1720322769080,2.38872645,3050.2,3050.1,2.295]
[1720322769287,2.45429097,3050.2,3050.1,2.295]
[1720322769500,1.77685811,3050.2,3050.1,2.295]
[1720322769827,1.71129359,3050.2,3050.1,2.295]
[1720322770028,2.45418261,3050.2,3050.1,2.295]
[1720322770895,2.45415274,3050.2,3050.1,2.295]
[1720322771094,0.6773245,3050.3,3050.1,2.295]
[1720322771315,0.6773245,3050.3,3050.2,2.29493]
[1720322771507,2.38851578,3050.4,3050.2,2.29493]
[1720322771706,1.7111874,3050.3,3050.2,2.29493]
[1720322771913,0.6773245,3050.4,3050.2,2.29493]
[1720322772431,4.92599,3050.4,3050.2,2.29493]
[1720322772600,4.92599,3050.4,3050.3,4.5897]
[1720322772601,0.6773245,3050.4,3050.3,4.5897]
[1720322772801,2.30939864,3050.5,3050.4,2.29478]
[1720322773193,2.30939864,3050.5,3050.4,2.33305871]
[1720322774721,3.11345595,3050.6,3050.5,2.2947]
[1720322774923,4.2486001,3050.6,3050.5,2.2947]
[1720322775110,4.2486001,3050.6,3050.5,2.33289232]
[1720322776444,1.13514415,3050.6,3050.5,2.33289232]
[1720322776595,4.2486001,3050.6,3050.5,2.33289232]
[1720322777243,0.6773245,3050.7,3050.6,2.29463]
[1720322777529,1.8780393,3050.8,3050.6,2.29463]
[1720322777715,0.06556452,3050.8,3050.6,2.33278789]
[1720322777896,4.24808602,3050.7,3050.6,2.29463]
[1720322778403,1.13512666,3050.7,3050.6,2.29463]
[1720322778596,2.84642139,3051.0,3050.6,2.29463]
[1720322778597,3.11295936,3050.9,3050.6,2.29463]
[1720322778855,3.11295936,3050.9,3050.3,2.33935955]
[1720322778856,1.13503836,3050.9,3050.8,4.5889]
[1720322779132,5.28315631,3051.0,3050.9,2.2944]
[1720322779133,2.17,3051.0,3050.9,2.2944]
[1720322779346,2.17,3051.0,3050.9,4.5888]
[1720322779650,3.11315631,3051.2,3051.1,2.29425]
[1720322779796,4.87561424,3051.2,3051.1,2.29425]
[1720322780324,0.62752422,3051.2,3051.1,2.29425]
[1720322780541,3.16199009,3051.4,3051.1,2.29425]
[1720322780836,3.1136669,3051.2,3051.1,2.29425]
[1720322781175,4.24861011,3051.2,3051.1,2.29425]
[1720322781439,1.13494321,3051.2,3051.1,2.29425]
[1720322781803,4.24861011,3051.2,3051.1,2.29425]
[1720322782408,3.17923142,3051.3,3051.1,2.29425]
[1720322782817,4.24859916,3051.2,3051.1,2.29425]
[1720322783018,1.13493226,3051.2,3051.1,4.5885]
[1720322783223,3.1136669,3051.4,3051.3,2.2941]
[1720322783438,3.1136669,3051.4,3051.3,2.33177717]
[1720322783615,4.24855034,3051.4,3051.3,2.33177717]
[1720322783957,4.25063817,3051.4,3051.3,2.33177717]
[1720322784515,1.13488285,3051.4,3051.3,2.33177717]
[1720322784717,3.18131984,3051.5,3051.4,2.29402]
[1720322785142,4.31615062,3051.5,3051.4,2.33164078]
[1720322785313,4.2505861,3051.5,3051.4,2.33164078]
[1720322785509,2.17,3051.7,3051.6,2.29387]
[1720322785510,5.28575532,3051.7,3051.6,2.29387]
[1720322785756,6.48603899,3051.7,3051.6,2.29387]
[1720322785924,6.48603899,3051.7,3051.6,2.331396]
[1720322786125,5.08072988,3051.7,3051.6,2.29387]
[1720322786326,5.08072988,3051.7,3051.6,2.331396]
[1720322786552,6.48652536,3051.7,3051.6,2.29387]
[1720322787020,6.48650672,3051.7,3051.6,2.29387]
[1720322787354,2.17,3051.7,3051.6,2.29387]
[1720322787569,6.42101568,3051.7,3051.6,2.29387]
[1720322787745,6.42101568,3051.7,3051.6,2.331396]
[1720322788064,6.42101568,3051.7,3051.6,2.29387]
[1720322788434,6.42082483,3051.7,3051.6,2.29387]
[1720322788828,3.30472529,3051.7,3051.6,2.29387]
[1720322789230,6.42082483,3051.7,3051.6,2.29387]
[1720322789429,3.30472529,3051.7,3051.6,2.29387]
[1720322789641,3.37028981,3051.7,3051.6,2.29387]
[1720322789860,6.47379429,3051.7,3051.6,0.037526]
[1720322790067,8.18596729,3051.7,3051.6,0.037526]
[1720322790283,8.18596729,3051.7,3051.4,2.29401]
[1720322790284,5.34077616,3051.7,3051.4,2.29401]
[1720322790572,3.11603449,3051.5,3051.4,2.29401]
[1720322790772,1.20040432,3051.5,3051.4,2.29401]
[1720322791146,4.31643881,3051.5,3051.4,2.29401]
[1720322791554,1.20040432,3051.5,3051.4,2.29401]
[1720322791855,1.1348398,3051.5,3051.4,2.29401]
[1720322792057,3.18159901,3051.6,3051.4,2.29401]
[1720322793145,3.8586677,3051.6,3051.4,2.29401]
[1720322793672,5.96140122,3051.5,3051.2,2.29416]
[1720322793847,3.18159839,3051.5,3051.2,2.29416]
[1720322794244,1.13486038,3051.4,3051.0,2.29432]
[1720322794449,3.85872587,3051.5,3051.3,2.2941]
[1720322794450,3.79316135,3051.5,3051.3,2.2941]
[1720322794759,3.11603387,3051.5,3051.3,2.2941]
[1720322795163,4.92800422,3051.5,3051.4,2.29402]
[1720322795485,3.85872587,3051.6,3051.4,2.29402]
[1720322795652,3.18159839,3051.6,3051.4,2.29402]
[1720322795853,3.85872587,3051.6,3051.4,2.29402]
[1720322796897,3.85892333,3051.6,3051.4,2.29402]
[1720322797246,3.85901089,3051.6,3051.4,2.29402]
[1720322797556,1.13481298,3051.5,3051.4,2.29402]
[1720322798498,4.2508919,3051.5,3051.4,2.29402]
[1720322798655,5.96142884,3051.5,3051.4,2.29402]
[1720322798992,1.13481298,3051.5,3051.4,2.29402]
[1720322799287,3.85901089,3051.6,3051.4,2.29402]
[1720322799597,4.25087119,3051.5,3051.4,2.29402]
[1720322800100,2.17,3051.7,3051.5,2.29395]
[1720322800254,6.63851335,3051.6,3051.5,2.29395]
[1720322800447,5.96099092,3051.6,3051.5,2.29395]
[1720322800855,6.63851335,3051.6,3051.5,2.29395]
[1720322801056,5.96099092,3051.6,3051.5,2.29395]
[1720322801250,6.63851335,3051.6,3051.5,2.29395]
[1720322801451,5.96099092,3051.6,3051.5,2.29395]
[1720322802065,6.63851335,3051.6,3051.5,2.29395]
[1720322802769,6.63838214,3051.6,3051.5,2.29395]
[1720322802969,3.52273335,3051.6,3051.5,2.29395]
[1720322803194,6.63844078,3051.6,3051.5,2.33129668]
[1720322803364,0.67752243,3051.6,3051.5,2.33129668]
[1720322803565,3.5226342,3051.6,3051.5,0.03734668]
[1720322803876,5.56240818,3051.6,3051.2,2.29411]
[1720322804089,0.958,3051.3,3051.2,2.29411]
[1720322804281,3.80311177,3051.3,3051.2,2.29411]
[1720322804477,5.20850393,3051.3,3051.2,2.29411]
[1720322804881,6.91904784,3051.3,3051.2,2.29411]
[1720322805086,5.20850393,3051.3,3051.2,2.29411]
[1720322805294,6.91904196,3051.3,3051.2,2.29411]
[1720322805676,7.59681141,3051.3,3051.2,2.29411]
[1720322806478,0.958,3051.3,3051.2,2.29411]
[1720322806674,1.63582999,3051.3,3051.2,2.29411]
[1720322806909,0.958,3051.3,3051.2,2.29411]
[1720322807089,4.07273456,3051.3,3051.2,2.29411]
[1720322807273,4.24955935,3051.3,3051.2,2.29411]
[1720322807594,1.6358176,3051.5,3051.3,2.2941]
[1720322807806,2.84521651,3051.4,3051.3,2.2941]
[1720322808112,3.52304191,3051.4,3051.3,2.2941]
[1720322808320,2.84522431,3051.4,3051.3,2.2941]
[1720322808478,3.52304191,3051.4,3051.3,2.2941]
[1720322809815,3.52303647,3051.4,3051.3,2.2941]
[1720322810337,2.84521887,3051.4,3051.3,2.2941]
[1720322810511,3.52303647,3051.4,3051.3,4.5882]
[1720322811995,2.84521887,3051.4,3051.3,4.5882]
[1720322812196,3.52319749,3051.4,3051.3,4.5882]
[1720322812727,3.27319749,3051.4,3051.3,4.5882]
[1720322813098,0.67797862,3051.4,3051.3,4.5882]
[1720322813302,2.3884788,3051.4,3051.3,4.5882]
[1720322813819,0.67797862,3051.5,3051.4,4.58804]
[1720322814017,0.67797862,3051.5,3051.4,4.52816]
[1720322814586,2.38835036,3051.6,3051.5,4.5879]
[1720322814785,1.71035486,3051.6,3051.5,4.5879]
[1720322815529,2.72708126,3051.6,3051.5,4.5879]
[1720322815890,2.72708126,3051.6,3051.5,2.29395]
[1720322816398,2.72708653,3051.6,3051.5,2.29395]
[1720322816789,2.17,3051.7,3051.6,2.29387]
[1720322816984,8.04083933,3051.7,3051.6,2.29387]
[1720322817529,9.80991502,3051.7,3051.6,2.29387]
[1720322817701,8.3801849,3051.7,3051.6,2.29387]
[1720322817906,9.80997719,3051.7,3051.6,2.29387]
[1720322818142,8.11324932,3051.7,3051.6,2.29387]
[1720322818355,9.80997719,3051.7,3051.6,2.33120822]
[1720322819655,4.97309762,3051.7,3051.6,2.33120822]
[1720322819860,9.811192,3051.7,3051.6,2.33120822]
[1720322820156,9.811192,3051.7,3051.6,2.29387]
[1720322820528,8.11327022,3051.7,3051.6,2.29387]
[1720322822244,8.11324329,3051.7,3051.6,2.29387]
[1720322822634,9.24797191,3051.7,3051.6,2.29387]
[1720322825140,9.24797191,3051.7,3051.6,2.33120822]
[1720322825358,7.53746168,3051.7,3051.6,5.31159722]
[1720322825659,10.94860627,3051.7,3051.6,5.31159722]
[1720322825815,10.9485832,3051.7,3051.6,5.31159722]
[1720322826318,7.07766074,3051.7,3051.6,5.31159722]
[1720322826745,8.7785832,3051.7,3051.6,5.31159722]
[1720322827457,10.19209055,3051.7,3051.6,5.31159722]
[1720322827617,8.4383338,3051.7,3051.6,5.31159722]
[1720322827818,5.42040065,3051.7,3051.6,5.31159722]
[1720322828043,1.7102729,3051.7,3051.6,5.31159722]
[1720322828245,1.02034775,3051.7,3051.6,5.37713179]
[1720322828469,0.958,3052.5,3052.3,2.29331]
[1720322828775,7.79702153,3052.4,3052.3,2.29331]
[1720322828958,10.88579787,3052.4,3052.3,2.29331]
[1720322829163,8.03584827,3052.4,3052.3,2.29331]
[1720322830326,8.03584827,3052.4,3052.3,2.33027164]
[1720322831561,5.47207973,3052.4,3052.3,2.33027164]
[1720322831733,8.03595215,3052.4,3052.3,2.33027164]
[1720322832382,12.85108998,3052.4,3052.3,2.33027164]
[1720322833595,11.15168799,3052.4,3052.3,2.33027164]
[1720322833865,12.85108998,3052.4,3052.3,2.33027164]
[1720322834168,11.15168799,3052.4,3052.3,2.33027164]
[1720322834872,8.0358937,3052.4,3052.3,2.33027164]
[1720322835029,8.03589682,3052.4,3052.3,2.33027164]
[1720322835228,9.39478722,3052.4,3052.3,2.33027164]
[1720322835769,11.1519746,3052.4,3052.3,2.33027164]
[1720322837275,12.51071793,3052.4,3052.3,2.33027164]
[1720322837574,9.73450733,3052.4,3052.3,2.33027164]
[1720322837872,10.12208797,3052.4,3052.3,0.03696164]
[1720322838094,4.14969851,3052.4,3052.3,0.03696164]
[1720322838232,8.42387738,3052.4,3052.3,0.03674604]
[1720322838439,8.42387738,3052.4,3052.0,2.29357]
[1720322838755,0.958,3052.1,3052.0,2.29357]
[1720322838948,4.94806831,3052.1,3052.0,2.29357]
[1720322839773,4.94806831,3052.1,3051.9,2.29363]
[1720322839984,3.99037592,3052.0,3051.9,2.29363]
[1720322840166,3.68754237,3052.0,3051.9,2.29363]
[1720322840482,2.72954237,3052.0,3051.9,2.29363]
[1720322840776,1.3593301,3052.1,3051.9,2.29363]
[1720322840978,3.4354,3052.2,3051.9,2.29363]
[1720322841308,0.52473379,3052.1,3051.9,2.29363]
[1720322842070,2.72977881,3052.0,3051.9,2.29363]
[1720322842461,1.01960603,3052.0,3051.9,2.29363]
[1720322844288,1.01960603,3052.0,3051.9,5.046022]
[1720322845899,4.47780983,3052.1,3051.9,2.29363]
[1720322846394,1.13459148,3052.0,3051.9,2.29363]
[1720322846602,0.958,3052.3,3051.9,2.29363]
[1720322846893,3.11830595,3052.1,3051.9,2.29363]
[1720322847079,3.99043579,3052.0,3051.9,2.29363]
[1720322847251,5.12503105,3052.0,3051.9,2.29363]
[1720322847452,8.24335242,3052.0,3051.9,2.29363]
[1720322847697,5.12503105,3052.0,3051.9,2.29363]
[1720322847904,2.72972633,3052.0,3051.9,2.29363]
[1720322848191,2.72967399,3052.0,3051.9,2.29363]
[1720322848401,2.72967399,3052.0,3051.9,2.33056551]
[1720322849804,1.01953956,3052.0,3051.9,2.33056551]
[1720322850093,2.72966548,3052.0,3051.9,2.33056551]
[1720322850256,1.71012592,3052.0,3051.9,2.33056551]
[1720322850589,2.72966548,3052.0,3051.9,2.79299406]
[1720322850776,1.71012592,3052.0,3051.9,2.79299406]
[1720322852126,3.86420633,3052.0,3051.9,2.33056551]
[1720322852279,6.98253382,3052.0,3051.9,2.33056551]
[1720322853116,2.72966548,3052.0,3051.9,2.33056551]
[1720322853278,6.98252332,3052.0,3051.9,2.33056551]
[1720322853679,2.84466539,3052.0,3051.9,2.33056551]
[1720322853899,1.71012309,3052.0,3051.9,2.79299406]
[1720322854182,2.84464976,3052.0,3051.9,2.79299406]
[1720322854496,3.86417929,3052.0,3051.9,2.79299406]
[1720322855373,6.98249766,3052.0,3051.9,2.79299406]
[1720322856496,1.01953956,3052.0,3051.9,5.08664406]
[1720322856696,4.13791863,3052.1,3052.0,4.62367]
[1720322856929,1.01953956,3052.1,3052.0,5.40226349]
[1720322857130,5.27242201,3052.1,3052.0,5.40226349]
[1720322857322,6.98244972,3052.1,3052.0,7.69583349]
[1720322857524,3.86404629,3052.1,3052.0,7.69583349]
[1720322858129,3.86404976,3052.1,3052.0,7.69583349]
[1720322858330,1.13447902,3052.1,3052.0,6.95416708]
[1720322858498,1.65949531,3052.1,3052.0,6.95416708]
[1720322858697,5.64957369,3052.1,3052.0,6.95416708]
[1720322858997,6.98323576,3052.1,3052.0,6.95416708]
[1720322859903,3.86479716,3052.1,3052.0,6.95416708]
[1720322860116,7.50825482,3052.1,3052.0,6.95416708]
[1720322860525,8.76799475,3052.1,3052.0,6.95416708]
[1720322860835,7.50836456,3052.1,3052.0,6.95416708]
[1720322861638,7.50844868,3052.1,3052.0,6.95416708]
[1720322862026,6.98340439,3052.1,3052.0,6.95416708]
[1720322862204,6.98340439,3052.1,3052.0,7.69582664]
[1720322862706,3.86499102,3052.1,3052.0,7.69582664]
[1720322863041,1.02049323,3052.2,3052.1,4.587]
[1720322863236,4.66431869,3052.2,3052.1,4.587]
[1720322863538,8.76817089,3052.2,3052.1,4.62389269]
[1720322863734,7.00907015,3052.2,3052.1,4.62389269]
[1720322864240,7.00907015,3052.2,3052.1,5.3318117]
[1720322864406,7.91321847,3052.2,3052.1,5.3318117]
[1720322864602,2.39043805,3052.2,3052.1,5.3318117]
[1720322864829,1.70997076,3052.2,3052.1,5.3318117]
[1720322865017,2.84438259,3052.2,3052.1,5.3318117]
[1720322865217,3.25541776,3052.2,3052.1,5.3318117]
[1720322866040,2.73064173,3052.2,3052.1,5.3318117]
[1720322866248,1.70997076,3052.2,3052.1,4.62389269]
[1720322866457,3.1173568,3052.3,3052.2,2.29342]
[1720322866651,8.7664848,3052.3,3052.2,2.29342]
[1720322866840,8.7664848,3052.3,3052.2,4.62363643]
[1720322866841,7.50713382,3052.3,3052.2,4.62363643]
[1720322867046,8.76654148,3052.3,3052.2,4.62363643]
[1720322867249,4.3896985,3052.3,3052.2,4.62363643]
[1720322867446,4.3896985,3052.3,3052.2,5.31901007]
[1720322867657,2.73046194,3052.3,3052.2,5.31901007]
[1720322868154,3.2555427,3052.3,3052.2,5.31901007]
[1720322868454,3.25574353,3052.3,3052.2,4.62363643]
[1720322868654,3.25582864,3052.3,3052.2,4.62363643]
[1720322869366,4.51503361,3052.3,3052.2,4.62363643]
[1720322869667,7.30499743,3052.3,3052.2,4.62363643]
[1720322869964,4.51498155,3052.3,3052.2,4.62363643]
[1720322870260,5.87568286,3052.3,3052.2,4.62363643]
[1720322870456,4.51498155,3052.3,3052.2,4.62363643]
[1720322870827,4.51498155,3052.3,3052.2,5.31901007]
[1720322871035,3.98969996,3052.3,3052.2,5.31901007]
[1720322871325,7.30484794,3052.3,3052.2,4.62363643]
[1720322871534,7.30485451,3052.3,3052.2,4.62363643]
[1720322871864,7.30486105,3052.3,3052.2,4.62363643]
[1720322872260,4.51483427,3052.3,3052.2,4.62363643]
[1720322872437,5.94411127,3052.3,3052.2,4.62363643]
[1720322872642,2.804961,3052.3,3052.2,4.62363643]
[1720322872848,5.02502378,3052.3,3052.2,4.62363643]
[1720322873148,7.07855886,3052.3,3052.2,4.62363643]
[1720322873349,10.19490074,3052.3,3052.2,4.62363643]
[1720322873765,11.89624903,3052.3,3052.2,2.33021643]
[1720322874016,10.29994205,3052.3,3052.2,0.03679643]
[1720322874274,8.59859376,3052.3,3052.0,2.29355]
[1720322874460,1.5200349,3052.3,3052.2,0.03679643]
[1720322874662,5.82242771,3052.3,3052.1,0.03683082]
[1720322874853,1.02356452,3052.3,3052.2,0.03679643]
[1720322875051,5.82242341,3052.3,3052.2,0.03679643]
[1720322875266,8.10248251,3052.3,3052.0,2.29355]
[1720322875468,0.958,3052.3,3052.2,0.03680639]
[1720322875644,0.958,3052.3,3052.1,0.03684079]
[1720322875645,5.82234233,3052.3,3052.1,0.03684079]
[1720322875844,11.89659097,3052.2,3052.1,0.03684079]
[1720322876044,11.89661936,3052.2,3052.1,0.03684079]
[1720322876484,8.78036958,3052.2,3052.1,0.03684079]
[1720322876645,11.89660275,3052.2,3052.1,0.03684079]
[1720322877707,10.19506782,3052.2,3052.1,0.03684079]
[1720322877888,10.19506782,3052.2,3052.1,2.33034079]
[1720322878861,11.89656777,3052.2,3052.1,2.33034079]
[1720322879205,4.23430695,3052.2,3052.1,2.33034079]
[1720322879354,9.61610843,3052.2,3052.1,2.33034079]
[1720322879553,10.19478839,3052.2,3052.1,2.33034079]
[1720322879748,11.89616239,3052.2,3052.1,2.33034079]
[1720322880356,10.19478839,3052.2,3052.1,2.33034079]
[1720322881669,10.19498579,3052.2,3052.1,4.62384079]
[1720322881870,4.51484884,3052.2,3052.1,5.31877487]
[1720322882097,7.30542713,3052.2,3052.1,5.31877487]
[1720322884183,4.51484884,3052.2,3052.1,5.31877487]
[1720322884487,7.30544366,3052.2,3052.1,5.31877487]
[1720322884701,7.30544366,3052.2,3052.1,4.62384079]
[1720322884889,2.80484957,3052.2,3052.1,4.62384079]
[1720322885106,9.2764838,3052.2,3052.1,0.03684079]
[1720322885273,5.15094957,3052.2,3052.1,0.03684079]
[1720322885603,11.12660085,3052.2,3052.1,0.03684079]
[1720322885795,9.42498464,3052.2,3052.1,0.03684079]
[1720322886009,10.38298464,3052.2,3052.1,0.03684079]
[1720322886172,12.08471769,3052.2,3052.1,0.03684079]
[1720322886373,10.38298464,3052.2,3051.9,2.29364]
[1720322886580,4.47803359,3052.0,3051.9,2.29364]
[1720322886780,8.44040467,3052.0,3051.9,2.29364]
[1720322887425,7.30587238,3052.0,3051.9,2.29364]
[1720322887582,4.51495758,3052.0,3051.9,2.29364]
[1720322888187,2.80484957,3052.0,3051.9,5.046024]
[1720322888380,2.7311368,3052.0,3051.9,7.336024]
[1720322889605,1.71003782,3052.0,3051.9,7.336024]
[1720322891316,1.02109898,3052.1,3052.0,4.58714]
[1720322891698,2.73101832,3052.1,3052.0,4.58714]
[1720322891897,2.73101832,3052.1,3052.0,5.3207274]
[1720322893301,2.73101832,3052.1,3052.0,5.35752275]
[1720322893734,1.02109898,3052.1,3052.0,5.35752275]
[1720322894043,2.73101832,3052.1,3052.0,5.35752275]
[1720322894796,2.73098575,3052.1,3052.0,5.35752275]
[1720322895196,2.73161527,3052.1,3052.0,0.77038275]
[1720322895439,2.73161527,3052.1,3052.0,5.35752275]
[1720322895622,1.70987157,3052.1,3052.0,5.35752275]
[1720322898112,1.0217437,3052.2,3052.1,4.587]
[1720322898324,2.73158987,3052.2,3052.1,5.61785524]
[1720322898515,3.25714196,3052.2,3052.1,5.61785524]
[1720322899533,2.23539826,3052.2,3052.1,5.61785524]
[1720322899837,3.25725576,3052.2,3052.1,5.61785524]
[1720322900924,2.73170367,3052.2,3052.1,5.61785524]
[1720322901247,1.0218575,3052.2,3052.1,5.61785524]
[1720322901449,2.73168049,3052.2,3052.1,5.61785524]
[1720322901736,2.23535704,3052.2,3052.1,5.61785524]
[1720322902298,3.98962377,3052.2,3052.1,5.61785524]
[1720322902503,2.27980078,3052.2,3052.1,5.61785524]
[1720322902702,2.80541204,3052.2,3052.1,5.61785524]
[1720322902898,3.66479368,3052.2,3052.1,5.61785524]
[1720322903115,3.66479368,3052.2,3052.1,4.62375297]
[1720322904608,5.94459446,3052.2,3052.1,4.62375297]
[1720322904804,7.30706319,3052.2,3052.1,4.62375297]
[1720322906648,4.16788077,3052.2,3052.1,4.62375297]
[1720322906947,7.30709412,3052.2,3052.1,4.62375297]
[1720322907143,2.73204069,3052.2,3052.1,5.08612827]
[1720322907303,2.73204069,3052.2,3052.1,7.55982827]
[1720322908129,2.39133523,3052.2,3052.1,7.55982827]
[1720322908441,0.68159037,3052.3,3052.2,2.29342]
[1720322908641,0.68159037,3052.4,3052.2,6.21071201]
[1720322908964,0.68159037,3052.5,3052.4,4.58654]
[1720322909118,2.39118805,3052.5,3052.4,4.58654]
[1720322909305,2.39118805,3052.5,3052.4,4.62311597]
[1720322909646,2.39118805,3052.5,3052.4,5.47715657]
[1720322910247,1.70959768,3052.5,3052.4,5.47715657]
[1720322910538,0.68123045,3052.6,3052.5,4.5864]
[1720322910747,2.73184408,3052.6,3052.5,4.62285378]
[1720322911850,2.73184408,3052.6,3052.5,2.32965378]
[1720322912051,2.23607994,3052.6,3052.5,2.32965378]
[1720322912357,4.51571005,3052.6,3052.5,2.32965378]
[1720322913054,3.25767493,3052.6,3052.5,2.32965378]
[1720322913457,3.25750326,3052.6,3052.5,2.32965378]
[1720322913663,2.73129818,3052.6,3052.5,2.32965378]
[1720322914050,3.25762003,3052.6,3052.5,2.32965378]
[1720322914270,2.73129818,3052.6,3052.5,2.32965378]
[1720322915167,1.70970319,3052.6,3052.5,2.32965378]
[1720322915389,2.73129818,3052.6,3052.5,2.32965378]
[1720322916048,1.70970319,3052.6,3052.5,2.32965378]
[1720322916248,1.70970319,3052.6,3052.5,4.62285378]
[1720322916482,2.39058002,3052.6,3052.5,4.62285378]
[1720322916795,2.39058002,3052.6,3052.5,2.32965378]
[1720322917001,2.2596,3052.8,3052.7,2.29305]
[1720322917150,5.87743439,3052.8,3052.7,2.29305]
[1720322917499,5.87743439,3052.8,3052.7,2.329439]
[1720322917500,4.51567076,3052.8,3052.7,2.329439]
[1720322918349,2.80602748,3052.8,3052.7,2.329439]
[1720322918588,4.51566879,3052.8,3052.7,2.329439]
[1720322918955,5.87729186,3052.8,3052.7,2.329439]
[1720322919161,4.51566879,3052.8,3052.7,2.329439]
[1720322919357,5.87729186,3052.8,3052.7,2.329439]
[1720322919965,4.51566879,3052.8,3052.7,2.329439]
[1720322920190,2.80602748,3052.8,3052.7,2.329439]
[1720322920377,5.87723408,3052.8,3052.7,2.329439]
[1720322920578,4.51568783,3052.8,3052.7,2.329439]
[1720322921897,2.73079848,3052.8,3052.7,2.329439]
[1720322923557,2.73076753,3052.8,3052.7,2.329439]
[1720322924808,3.25731079,3052.8,3052.7,2.329439]
[1720322925105,2.23617266,3052.8,3052.7,2.329439]
[1720322925285,2.73072155,3052.8,3052.7,2.329439]
[1720322925697,3.25728398,3052.8,3052.7,2.329439]
[1720322925907,4.51571248,3052.8,3052.7,2.329439]
[1720322926499,5.64994991,3052.8,3052.7,2.329439]
[1720322926708,2.80608308,3052.8,3052.7,2.329439]
[1720322926908,5.65000409,3052.8,3052.7,2.329439]
[1720322927087,4.51575867,3052.8,3052.7,2.329439]
[1720322927284,4.51573787,3052.8,3052.7,2.329439]
[1720322927803,5.64996511,3052.8,3052.7,2.329439]
[1720322928109,4.51575929,3052.8,3052.7,2.329439]
[1720322928725,5.64998437,3052.8,3052.7,2.329439]
[1720322928883,5.64998219,3052.8,3052.7,2.329439]
[1720322929084,4.51575929,3052.8,3052.7,2.329439]
[1720322929302,8.76976088,3052.8,3052.7,2.329439]
[1720322929708,5.64997678,3052.8,3052.7,2.329439]
[1720322930219,4.51576354,3052.8,3052.7,2.329439]
[1720322930392,3.25794523,3052.8,3052.7,2.329439]
[1720322930723,3.25793802,3052.8,3052.7,2.329439]
[1720322931013,2.73137559,3052.8,3052.7,2.329439]
[1720322931217,5.6502949,3052.8,3052.7,2.329439]
[1720322931526,8.77208864,3052.8,3052.7,2.329439]
[1720322931730,4.39254452,3052.8,3052.7,2.329439]
[1720322932025,3.25831971,3052.8,3052.7,2.329439]
[1720322932321,10.13437273,3052.8,3052.7,2.329439]
[1720322932930,11.56352173,3052.8,3052.7,2.329439]
[1720322933218,8.77206688,3052.8,3052.7,2.329439]
[1720322933522,8.77203542,3052.8,3052.7,2.329439]
[1720322933821,11.56383189,3052.8,3052.7,2.329439]
[1720322936344,8.44205651,3052.8,3052.7,2.329439]
[1720322936718,8.44205656,3052.8,3052.7,2.329439]
[1720322936915,11.56402156,3052.8,3052.7,2.329439]
[1720322937115,8.49172223,3052.8,3052.7,2.329439]
[1720322937349,8.44241172,3052.8,3052.7,2.329439]
[1720322937999,7.07936526,3052.8,3052.7,2.329439]
[1720322938336,8.4425056,3052.8,3052.7,2.329439]
[1720322938509,7.07943552,3052.8,3052.7,2.329439]
[1720322940055,3.94064201,3052.8,3052.7,2.329439]
[1720322940351,7.07945752,3052.8,3052.7,2.329439]
[1720322942368,4.23554495,3052.8,3052.7,2.329439]
[1720322942592,6.50404023,3052.8,3052.7,2.329439]
[1720322942761,8.78356111,3052.8,3052.7,2.329439]
[1720322944578,7.07947408,3052.8,3052.7,2.329439]
[1720322945250,8.78356111,3052.8,3052.7,2.329439]